bitfinex/quotes_ETHUSD_20250724
["timestamp","ask_amount","ask_price","bid_price","bid_amount"]
[1753366441865,0.1376,3624.3,3623.8,0.4968]
[1753366442068,0.62403165,3624.9,3617.4,1.36940667]
[1753366442069,2.76153425,3621.2,3617.4,1.36940667]
[1753366442395,3.0,3620.1,3618.0,0.4968]
[1753366442552,2.76281873,3619.5,3618.8,0.4457]
[1753366442757,2.899,3620.9,3618.8,0.4457]
[1753366442758,0.0274742,3619.4,3618.9,0.4968]
[1753366443020,0.4968,3620.1,3619.0,1.7705]
[1753366443157,0.466,3621.0,3619.0,1.7705]
[1753366443498,0.466,3621.0,3619.1,0.9425]
[1753366443499,0.0274742,3621.0,3619.1,0.9425]
[1753366443790,0.0274742,3621.0,3620.3,0.001]
[1753366443965,2.76212573,3620.4,3620.3,0.001]
[1753366444166,2.76212573,3620.4,3618.5,0.37302101]
[1753366444167,3.0,3620.3,3618.6,0.4457]
[1753366444373,0.8570742,3620.2,3618.5,0.4968]
[1753366444580,0.8296,3620.2,3618.6,0.47333499]
[1753366444758,3.0,3620.7,3618.7,0.4968]
[1753366444968,1.7251,3620.8,3618.8,0.47333346]
[1753366445318,2.76202055,3620.6,3619.5,2.76280818]
[1753366445456,0.04,3620.9,3619.3,0.97012965]
[1753366445661,0.0274742,3620.5,3619.3,3.70545786]
[1753366445897,2.76206123,3620.5,3619.5,2.76281254]
[1753366446104,2.76197315,3620.6,3619.3,3.70542476]
[1753366446267,2.76197315,3620.6,3619.0,2.76312737]
[1753366446268,2.76220202,3620.3,3619.0,2.76312737]
[1753366446468,0.0274742,3620.5,3618.8,0.4968]
[1753366446469,2.76212573,3620.4,3618.8,0.4968]
[1753366446693,2.76197667,3620.6,3619.7,2.762658]
[1753366446976,0.04,3620.9,3620.8,2.76182059]
[1753366447207,0.04,3620.9,3620.8,3.70432059]
[1753366447365,0.04,3620.9,3620.8,0.9425]
[1753366447573,0.04,3620.9,3620.8,3.70432059]
[1753366447866,0.04,3620.9,3620.8,3.73193879]
[1753366448279,0.04,3621.9,3621.6,2.76121051]
[1753366448623,0.04,3621.9,3621.6,4.46501051]
[1753366448836,0.04,3621.9,3621.8,2.76105803]
[1753366449005,1e-08,3621.9,3621.8,7.71366861]
[1753366449321,1e-08,3621.9,3621.8,3.70355803]
[1753366449481,1e-08,3621.9,3621.8,8.62955803]
[1753366449985,0.25150228,3622.8,3622.7,2.76037209]
[1753366450322,0.042,3622.9,3622.8,2.7602959]
[1753366450465,0.042,3622.9,3622.8,2.78789885]
[1753366450669,0.042,3622.9,3622.8,3.73039885]
[1753366451265,1e-08,3622.9,3622.8,4.48489885]
[1753366451462,1e-08,3622.9,3622.8,9.39789885]
[1753366451665,1e-08,3622.9,3622.8,9.3702959]
[1753366452363,1e-08,3622.9,3622.8,10.0586959]
[1753366452693,1e-08,3622.9,3622.8,13.0586959]
[1753366452890,2.24041058,3623.9,3623.6,2.75968649]
[1753366452891,0.97445047,3623.7,3623.6,2.75968649]
[1753366453207,0.04,3623.9,3623.8,2.89713419]
[1753366453365,0.29167889,3623.9,3623.8,3.83963419]
[1753366453571,1.01186554,3623.9,3623.8,4.65323419]
[1753366453794,0.04,3623.9,3623.8,4.68082953]
[1753366454305,0.58365745,3624.4,3624.2,2.75922962]
[1753366454477,0.97203924,3624.5,3624.4,2.75907736]
[1753366454678,0.97203924,3624.6,3624.5,2.75900124]
[1753366455002,0.04,3624.9,3624.5,2.75900124]
[1753366455003,1.98890094,3624.9,3624.6,2.75892512]
[1753366455206,0.58294428,3624.8,3624.6,2.27877977]
[1753366455425,0.04,3624.9,3624.8,2.89637289]
[1753366455583,2.56567528,3624.9,3624.7,2.896449]
[1753366455781,0.04,3624.9,3624.8,2.75877289]
[1753366455985,0.62284598,3624.9,3624.8,2.75877289]
[1753366457109,1.49734133,3624.9,3624.8,2.75877289]
[1753366457332,1.49734133,3624.9,3624.8,4.25127289]
[1753366457531,0.58284598,3624.9,3624.8,11.15827289]
[1753366457820,0.58284598,3625.2,3625.1,2.75854459]
[1753366457980,0.58284598,3625.2,3625.1,3.70104459]
[1753366458177,0.58284598,3625.2,3625.1,9.53384459]
[1753366458375,0.58284598,3625.2,3625.1,11.65786294]
[1753366458578,0.002,3625.3,3625.1,11.65786294]
[1753366458579,0.002,3625.3,3625.2,2.75846849]
[1753366458792,0.002,3625.3,3625.2,3.70096849]
[1753366458983,0.002,3625.3,3625.2,10.70198684]
[1753366459988,0.002,3625.3,3625.2,5.82498684]
[1753366460302,0.002,3625.3,3625.2,10.69698684]
[1753366460501,1e-08,3625.3,3625.2,13.69698684]
[1753366460818,0.04,3625.9,3625.8,2.75801202]
[1753366461120,0.04,3625.9,3625.8,7.62501202]
[1753366461413,0.04,3625.9,3625.8,13.82373037]
[1753366461772,0.04,3625.9,3625.8,14.58783037]
[1753366461972,0.04,3625.9,3625.8,15.13783037]
[1753366462186,0.04,3625.9,3625.8,9.72083037]
[1753366462386,0.04,3625.9,3625.8,14.58183037]
[1753366462680,0.04,3625.9,3625.8,11.58183037]
[1753366463214,0.04,3625.9,3625.8,6.72083037]
[1753366463427,0.04,3625.9,3625.8,2.26161835]
[1753366463581,0.04,3625.9,3625.8,9.87363037]
[1753366463778,0.04,3625.9,3625.8,2.12401835]
[1753366464093,3.88373596,3625.9,3625.8,6.97801835]
[1753366464275,1.1258,3625.9,3625.8,6.97801835]
[1753366464478,0.04,3625.9,3625.8,6.97801835]
[1753366466127,0.04,3625.9,3625.8,4.88203037]
[1753366466354,0.04,3625.9,3625.8,9.73103037]
[1753366466963,0.04,3625.9,3625.8,4.88203037]
[1753366467169,0.04,3625.9,3625.8,9.72803037]
[1753366467653,0.002,3626.4,3626.3,2.75763174]
[1753366467815,0.002,3626.4,3626.1,2.75777731]
[1753366468015,0.002,3626.4,3626.3,2.69916302]
[1753366468549,0.002,3626.4,3626.3,7.54116302]
[1753366468928,0.002,3626.4,3626.3,2.69916302]
[1753366469118,0.4613,3626.4,3626.3,2.69916302]
[1753366469560,0.9314,3626.4,3626.3,2.69916302]
[1753366469759,0.002,3626.4,3626.3,2.69916302]
[1753366470264,0.9314,3626.4,3626.3,2.69916302]
[1753366470560,0.002,3626.4,3626.3,7.53616302]
[1753366470781,0.002,3626.4,3626.3,10.29379476]
[1753366471063,0.002,3626.8,3626.4,2.75753498]
[1753366471260,0.002,3626.8,3626.7,2.75732759]
[1753366471465,0.002,3626.8,3626.7,7.58732759]
[1753366471665,0.002,3626.8,3626.7,10.12628492]
[1753366472435,0.002,3626.8,3626.7,11.03638492]
[1753366473167,0.002,3626.8,3626.7,10.12028492]
[1753366473377,0.002,3626.8,3626.7,10.11928492]
[1753366473726,0.002,3626.8,3626.7,11.02938492]
[1753366473945,0.002,3626.8,3626.7,5.73658492]
[1753366474154,0.002,3626.8,3626.7,10.55958492]
[1753366474350,0.002,3626.8,3626.7,5.73658492]
[1753366474764,0.04,3626.9,3626.8,2.75725157]
[1753366474963,0.002,3627.2,3626.8,2.75725157]
[1753366474964,0.002,3627.2,3627.1,2.75702351]
[1753366475164,0.002,3627.2,3627.1,7.57602351]
[1753366475572,0.002,3627.2,3627.1,10.01078111]
[1753366475732,0.002,3627.4,3627.3,2.7568715]
[1753366475929,0.002,3627.8,3627.7,2.75656752]
[1753366476135,0.002,3627.8,3627.7,7.57356752]
[1753366476663,0.002,3627.8,3627.7,9.85944783]
[1753366476876,0.04,3627.9,3627.8,2.75649153]
[1753366477083,0.002,3628.2,3627.7,7.10288031]
[1753366477244,0.002,3628.2,3627.8,2.27436056]
[1753366477445,0.4613,3628.2,3627.9,4.813]
[1753366477644,0.4613,3628.2,3628.0,4.812]
[1753366477645,0.9294,3628.1,3628.0,4.812]
[1753366477846,0.9294,3628.1,3628.0,2.27476554]
[1753366477847,3.6856636,3628.1,3628.0,2.27476554]
[1753366478045,4.74290438,3628.1,3628.0,2.27476554]
[1753366478399,7.74290438,3628.1,3628.0,2.27476554]
[1753366478950,7.88050438,3628.1,3628.0,2.27476554]
[1753366479300,8.13191573,3628.1,3628.0,2.27476554]
[1753366479499,7.88050438,3628.1,3628.0,2.27476554]
[1753366479677,0.8069,3627.8,3626.5,0.1376]
[1753366479990,0.1376,3626.6,3626.1,0.19146673]
[1753366480280,0.9294,3627.7,3626.2,4.804]
[1753366480281,1.17974078,3627.7,3626.2,4.804]
[1753366480460,0.1376,3626.7,3626.2,4.802]
[1753366480642,2.75743226,3626.6,3626.2,4.802]
[1753366481143,2.8949278,3626.7,3626.2,4.802]
[1753366481578,0.5969,3626.7,3626.3,4.799]
[1753366481744,1.067,3626.7,3626.3,4.799]
[1753366481946,3.21676731,3626.6,3626.3,4.799]
[1753366482182,0.4593,3626.6,3626.1,0.1776]
[1753366482343,0.4593,3626.6,3626.2,4.797]
[1753366482549,3.21670528,3626.6,3626.2,4.797]
[1753366482964,2.89495815,3626.7,3626.2,4.797]
[1753366483171,2.7574854,3626.5,3626.2,4.797]
[1753366483484,0.1376,3626.3,3626.1,0.04]
[1753366483686,2.75770779,3626.2,3626.1,0.04]
[1753366483990,0.1376,3626.3,3626.1,0.04]
[1753366484189,0.25299466,3627.0,3626.6,2.75735235]
[1753366484349,0.25337127,3626.9,3626.7,4.785]
[1753366484566,0.25337127,3626.8,3626.4,4.786]
[1753366484902,0.25337127,3626.7,3626.4,7.54355479]
[1753366485103,0.25337127,3626.6,3626.4,4.786]
[1753366485274,0.25359298,3626.5,3626.4,4.786]
[1753366485596,0.25359298,3626.5,3626.1,0.04]
[1753366485762,3.01114868,3626.4,3626.3,4.783]
[1753366485966,2.75770779,3626.2,3626.1,0.04]
[1753366486197,3.04577211,3626.2,3626.1,0.04]
[1753366486524,0.25359298,3626.2,3626.1,0.04]
[1753366486800,4.19440922,3626.2,3626.1,0.04]
[1753366487484,0.50730143,3626.2,3626.1,0.04]
[1753366488312,0.25359298,3626.2,3626.1,0.04]
[1753366489000,0.25359298,3626.2,3626.1,2.79778384]
[1753366489498,0.25359298,3626.2,3626.1,8.48788384]
[1753366492512,0.25370845,3627.4,3626.1,6.5373]
[1753366492712,0.25370845,3627.3,3626.1,6.5373]
[1753366492911,0.25370845,3627.2,3627.0,2.75703813]
[1753366493215,1.05229667,3627.9,3627.0,7.52703813]
[1753366493216,0.25397954,3627.1,3627.0,7.52703813]
[1753366493394,0.25397954,3627.1,3626.1,1.2986]
[1753366493595,0.25397954,3627.0,3626.2,4.769]
[1753366493796,0.25397954,3626.9,3626.8,2.75720377]
[1753366493980,0.25397954,3627.3,3626.8,2.75725157]
[1753366494181,0.25397954,3627.2,3626.8,7.66285157]
[1753366494379,0.25397954,3627.1,3626.8,4.9056]
[1753366494581,0.25397954,3627.0,3626.9,2.77104224]
[1753366494804,0.25397954,3627.0,3626.8,4.9056]
[1753366494805,0.25397954,3627.4,3627.1,2.75697972]
[1753366495106,0.25397954,3627.3,3627.2,4.763]
[1753366496079,0.25397954,3627.3,3627.2,7.51993844]
[1753366496288,0.25397954,3627.3,3627.2,7.51994449]
[1753366496475,0.25397954,3627.6,3627.2,4.763]
[1753366496679,0.25397954,3627.5,3627.3,2.75681484]
[1753366496999,2.89402593,3627.9,3627.4,0.1376]
[1753366497000,0.25422646,3627.8,3627.4,0.1376]
[1753366497314,0.1376,3627.9,3627.4,2.89437021]
[1753366497315,0.25422646,3627.7,3627.4,2.89437021]
[1753366497511,0.25422646,3627.6,3627.5,2.7567195]
[1753366497714,0.25422646,3628.1,3627.8,2.75644697]
[1753366497888,0.25422646,3628.0,3627.9,2.75641555]
[1753366498211,0.25419095,3628.1,3628.0,2.75633958]
[1753366498385,0.25419095,3628.1,3627.9,4.8886]
[1753366498708,0.25419095,3628.0,3627.9,7.6450105]
[1753366498909,0.25419095,3628.1,3627.9,4.8886]
[1753366499209,0.25419095,3628.0,3627.9,0.1376]
[1753366499510,0.4325,3628.0,3627.1,3.551019]
[1753366499714,0.5701,3628.0,3627.4,0.1376]
[1753366499918,2.75649419,3627.8,3627.4,0.1376]
[1753366500239,1.2836,3627.8,3626.6,1.2718]
[1753366500376,2.7569055,3627.3,3626.8,0.1376]
[1753366500578,2.75717554,3626.9,3626.1,3.59907345]
[1753366500837,2.75753095,3626.5,3626.1,0.041]
[1753366501140,2.75770779,3626.2,3626.1,0.041]
[1753366501695,2.75816416,3625.6,3625.1,0.04]
[1753366501902,2.75831632,3625.4,3625.1,0.04]
[1753366502133,2.89591632,3625.4,3625.1,0.04]
[1753366502281,0.1376,3625.4,3625.1,0.04]
[1753366502831,3.51792616,3626.1,3625.2,0.1376]
[1753366502832,0.1376,3625.7,3625.2,0.1376]
[1753366503040,2.89572963,3625.7,3625.2,0.1376]
[1753366503243,2.75816715,3625.6,3625.2,0.1376]
[1753366503517,0.82408491,3625.7,3625.2,0.1376]
[1753366503818,0.82408491,3625.7,3625.1,0.04]
[1753366503819,0.25398491,3626.2,3626.1,2.75778384]
[1753366503996,0.25398491,3626.2,3625.6,0.1376]
[1753366503997,0.1376,3626.5,3626.0,2.75779229]
[1753366504196,0.1376,3626.9,3626.4,0.1376]
[1753366504398,0.25406767,3626.9,3626.5,0.93577279]
[1753366504754,0.1376,3627.3,3626.8,0.1376]
[1753366505040,0.5701,3627.3,3626.8,4.8696]
[1753366505185,0.82416767,3627.3,3626.8,7.62684854]
[1753366505389,0.82416767,3627.3,3626.8,4.8696]
[1753366505620,3.58104766,3627.3,3626.8,0.1376]
[1753366505785,2.75702692,3627.1,3626.8,4.73]
[1753366505984,0.1376,3627.0,3626.8,4.73]
[1753366506320,0.25406767,3627.7,3626.8,4.73]
[1753366506490,1.00698827,3628.2,3627.8,2.75649153]
[1753366506491,0.25606767,3628.2,3627.8,2.75649153]
[1753366506690,0.002,3628.2,3627.8,7.48849153]
[1753366506925,0.002,3628.2,3627.7,0.7937]
[1753366507090,0.002,3628.2,3627.8,7.49249153]
[1753366507304,0.002,3628.2,3627.3,0.4504]
[1753366507533,0.002,3628.2,3627.8,2.75649153]
[1753366507932,0.002,3628.2,3627.8,2.77034113]
[1753366508522,0.002,3628.2,3627.3,3.20722472]
[1753366508523,0.002,3628.2,3627.3,0.4504]
[1753366508838,0.002,3628.2,3627.7,2.75650761]
[1753366509023,0.002,3628.2,3627.4,4.734]
[1753366509419,0.002,3628.2,3627.8,2.75649153]
[1753366509624,0.002,3628.2,3627.8,2.77034113]
[1753366509801,0.002,3628.2,3627.8,2.75649153]
[1753366510004,0.002,3628.2,3627.8,4.45824113]
[1753366510202,0.002,3628.2,3628.1,2.7562636]
[1753366510412,0.002,3628.2,3628.1,7.4842636]
[1753366510616,0.002,3628.2,3628.1,7.9346636]
[1753366510864,0.002,3628.2,3628.1,7.4822636]
[1753366511148,0.002,3628.2,3628.1,8.4041636]
[1753366511358,1e-08,3628.3,3628.2,2.75618764]
[1753366511505,1e-08,3628.9,3628.8,2.75573192]
[1753366511706,1e-08,3628.9,3628.8,10.48173192]
[1753366511916,1e-08,3628.9,3628.8,11.40363192]
[1753366512162,1e-08,3629.0,3628.9,7.09905598]
[1753366512310,1e-08,3629.0,3628.9,8.02095598]
[1753366512511,0.04,3629.9,3628.9,8.02095598]
[1753366512512,1e-08,3629.5,3629.4,2.75527635]
[1753366512813,1e-08,3629.5,3629.4,8.28649557]
[1753366513004,1e-08,3629.9,3629.8,2.75497272]
[1753366513408,1e-08,3629.9,3629.8,7.92637272]
[1753366513642,1e-08,3629.9,3629.8,3.20537272]
[1753366513844,1e-08,3629.9,3629.8,7.47397272]
[1753366514357,1e-08,3629.9,3629.8,8.39587272]
[1753366515044,1e-08,3629.9,3629.4,0.7934]
[1753366515228,1e-08,3629.9,3628.9,0.8317]
[1753366515429,2.75519273,3629.6,3628.8,2.75567439]
[1753366515741,0.92804,3629.5,3628.8,2.75567714]
[1753366515948,1.6581,3629.4,3627.1,0.4904]
[1753366516126,3.51995639,3629.2,3627.1,0.9619]
[1753366516340,0.1376,3628.6,3628.1,0.1376]
[1753366516510,0.1376,3628.8,3628.3,0.1376]
[1753366516910,0.1376,3628.8,3628.3,2.90752918]
[1753366517249,2.75550439,3629.1,3628.7,0.1376]
[1753366517459,0.9021,3629.2,3628.7,0.1376]
[1753366517660,3.64912512,3629.1,3628.7,0.1376]
[1753366517810,0.8936,3629.1,3628.7,0.1376]
[1753366518347,1.6844,3629.6,3628.5,4.717]
[1753366518554,0.1376,3629.4,3628.9,0.1376]
[1753366518851,0.4325,3629.3,3628.9,0.1376]
[1753366519407,0.8936,3629.2,3628.6,4.714]
[1753366519650,0.8936,3629.2,3628.7,0.1376]
[1753366519850,0.8936,3629.1,3628.0,4.711]
[1753366520004,0.03444475,3629.0,3627.7,0.7863]
[1753366520209,0.1376,3628.8,3628.3,0.1376]
[1753366520635,0.9133,3628.7,3627.7,0.7863]
[1753366520846,0.1376,3628.5,3628.1,2.75619044]
[1753366521019,0.1376,3628.5,3628.0,0.1376]
[1753366521345,0.7773,3628.7,3628.4,0.1376]
[1753366521733,0.1376,3628.9,3628.4,0.1376]
[1753366522054,0.9133,3628.8,3628.1,2.75626227]
[1753366522265,0.1376,3628.7,3628.2,0.1376]
[1753366522411,2.75609941,3628.4,3628.1,4.706]
[1753366522616,0.1376,3628.2,3628.1,4.706]
[1753366522813,0.1376,3628.2,3627.1,0.04]
[1753366522814,0.8243,3628.1,3627.1,0.04]
[1753366523155,0.1376,3627.3,3627.1,0.04]
[1753366523654,0.1376,3627.5,3627.1,0.04]
[1753366523827,0.1376,3628.0,3627.4,2.89438372]
[1753366524155,3.0,3628.9,3627.4,2.89438372]
[1753366524156,0.8207,3628.7,3627.5,0.4291]
[1753366524453,3.0,3628.9,3628.2,0.1376]
[1753366524639,0.1376,3628.8,3628.2,0.1376]
[1753366524957,0.1376,3628.8,3628.2,2.8937775]
[1753366525250,0.1376,3628.8,3628.2,0.1376]
[1753366525453,2.75586559,3628.7,3628.2,0.1376]
[1753366525857,3.20806559,3628.7,3628.2,0.1376]
[1753366526017,3.66918381,3628.6,3628.2,0.1376]
[1753366526217,3.66918381,3628.6,3627.9,4.711]
[1753366526218,2.7560439,3628.4,3627.8,2.75646341]
[1753366526525,0.9133,3628.5,3627.8,2.75646341]
[1753366526526,0.1376,3628.5,3628.1,2.7562627]
[1753366526853,0.1376,3628.5,3628.2,2.75617039]
[1753366527160,2.75563356,3629.0,3628.3,7.47092908]
[1753366527463,1.2818,3629.1,3628.3,4.8386]
[1753366527612,0.8207,3629.1,3628.6,2.7558305]
[1753366527817,0.9133,3629.0,3628.3,4.701]
[1753366528016,1.0509,3629.0,3628.4,2.89362537]
[1753366528218,0.1376,3629.0,3628.4,0.1376]
[1753366528476,2.75572441,3628.9,3628.5,4.699]
[1753366528655,3.23792441,3628.9,3628.5,4.699]
[1753366528857,0.9344,3628.8,3628.3,4.696]
[1753366529155,0.1376,3628.8,3628.6,2.75587445]
[1753366529338,0.1376,3628.8,3628.3,0.1376]
[1753366529656,0.4522,3628.7,3628.6,0.1376]
[1753366529869,0.5898,3628.7,3628.4,4.702]
[1753366530042,0.5898,3628.7,3628.3,4.702]
[1753366530043,0.9344,3628.6,3628.3,4.702]
[1753366530426,0.8207,3629.1,3628.9,2.75558743]
[1753366530656,0.8207,3629.1,3628.8,2.75570655]
[1753366530871,0.1376,3629.2,3628.9,2.75562878]
[1753366531076,1.2759,3629.5,3628.3,5.1311]
[1753366531077,0.7937,3629.5,3628.3,5.1311]
[1753366531277,0.7868,3630.0,3629.2,2.75542819]
[1753366531575,0.7868,3630.4,3629.8,2.75497272]
[1753366531728,0.1376,3630.5,3629.8,2.76878435]
[1753366531929,0.4522,3630.7,3629.8,2.89257272]
[1753366532156,2.89201498,3630.6,3629.8,2.89257272]
[1753366532343,0.54175139,3630.6,3629.8,2.89257272]
[1753366532672,0.1376,3630.6,3629.8,7.59357272]
[1753366532975,0.1376,3630.6,3629.8,8.02267272]
[1753366533138,0.4822,3630.8,3629.8,8.02267272]
[1753366533344,0.1776,3630.9,3629.8,8.49617272]
[1753366534930,0.4522,3630.7,3629.8,7.58957272]
[1753366535130,0.1376,3630.2,3629.7,4.691]
[1753366535344,0.1376,3630.5,3629.8,2.76878511]
[1753366535641,1.40979696,3630.8,3629.8,3.67138511]
[1753366535987,0.04,3630.9,3630.7,0.7703]
[1753366536168,0.04,3630.9,3630.8,2.75421394]
[1753366536482,0.04,3630.9,3630.7,0.7703]
[1753366536632,0.04,3630.9,3630.1,0.8164]
[1753366536832,0.4522,3630.8,3630.2,4.696]
[1753366537073,2.75446965,3630.5,3630.3,4.696]
[1753366537272,0.50510706,3630.7,3630.3,4.696]
[1753366537573,0.4822,3630.6,3630.2,4.696]
[1753366537878,0.4822,3630.6,3630.3,4.695]
[1753366538054,0.04,3630.9,3630.5,2.75438366]
[1753366538236,0.9344,3630.8,3629.3,0.4735]
[1753366538441,3.72304223,3630.8,3629.3,0.4735]
[1753366538666,2.75441817,3630.6,3629.9,4.699]
[1753366538865,2.75441817,3630.6,3629.8,2.75595198]
[1753366538866,0.4822,3630.6,3629.8,0.001]
[1753366539080,0.4822,3630.6,3630.0,4.699]
[1753366539236,3.23658807,3630.6,3629.9,2.75483513]
[1753366539578,0.40502955,3630.6,3630.0,4.696]
[1753366539749,0.002,3630.7,3630.4,2.75448194]
[1753366539952,0.002,3630.7,3630.6,2.75436566]
[1753366540655,0.002,3630.7,3630.6,4.20696566]
[1753366540857,0.002,3630.7,3630.6,8.34896566]
[1753366541679,0.66119836,3632.2,3632.1,5.75322816]
[1753366541863,0.4822,3633.5,3632.1,7.706]
[1753366542062,0.4822,3633.5,3632.8,2.75269764]
[1753366542265,2.75202907,3633.7,3632.8,7.45769764]
[1753366542451,2.75215394,3633.6,3632.8,7.45769764]
[1753366542656,2.75226804,3633.4,3632.8,4.705]
[1753366542877,5.75203572,3633.7,3632.8,7.45769764]
[1753366543069,3.0,3633.7,3632.8,7.45769764]
[1753366543239,0.04,3633.9,3632.8,8.76189764]
[1753366543438,0.9344,3633.8,3632.8,2.75269764]
[1753366543643,0.4822,3633.8,3632.8,8.35629764]
[1753366543977,0.04,3633.9,3632.8,8.35629764]
[1753366544277,0.04,3633.9,3632.8,8.35429764]
[1753366544582,0.04,3633.9,3632.8,12.73659764]
[1753366544880,0.04,3633.9,3633.8,2.75194011]
[1753366545081,0.04,3633.9,3633.8,7.46367593]
[1753366545266,0.04,3633.9,3633.8,9.69624011]
[1753366545666,0.04,3633.9,3633.8,4.99824011]
[1753366545868,0.04,3633.9,3633.8,9.69524011]
[1753366546182,0.04,3633.9,3633.8,0.1376]
[1753366546383,0.04,3633.9,3633.8,8.48914011]
[1753366546584,0.04,3633.9,3633.8,9.03914011]
[1753366546883,0.04,3633.9,3633.8,9.03814011]
[1753366547045,0.04,3633.9,3633.8,4.34214011]
[1753366547246,0.04,3633.9,3633.8,9.03714011]
[1753366547990,0.04,3633.9,3633.8,4.34214011]
[1753366548293,0.04,3633.9,3633.8,4.8296]
[1753366548456,0.04,3633.9,3633.8,0.1376]
[1753366548644,0.04,3633.9,3633.8,8.05304011]
[1753366548852,0.04,3633.9,3633.8,9.03214011]
[1753366549391,0.04,3633.9,3633.8,3.36304011]
[1753366549544,0.04,3633.9,3633.8,7.57854011]
[1753366549869,0.04,3633.9,3633.8,9.03114011]
[1753366550068,0.04,3633.9,3633.8,8.89354011]
[1753366550268,0.04,3633.9,3633.8,11.89354011]
[1753366550677,0.04,3633.9,3633.8,11.88854011]
[1753366551388,0.04,3633.9,3633.8,7.96204011]
[1753366551591,0.04,3633.9,3633.8,12.64604011]
[1753366551968,0.04,3633.9,3633.8,7.96204011]
[1753366552167,0.04,3633.9,3633.8,12.63904011]
[1753366552574,0.04,3633.9,3633.8,5.75194011]
[1753366552901,0.04,3633.9,3632.9,1.2909]
[1753366553195,0.4706,3633.8,3632.9,0.8174]
[1753366553396,2.75216733,3633.5,3633.2,4.676]
[1753366553570,2.75248726,3633.1,3632.3,1.02122973]
[1753366553775,0.7835,3633.6,3632.3,0.20382973]
[1753366553776,2.75283983,3632.7,3632.3,0.20382973]
[1753366554090,0.9528,3632.6,3632.4,4.674]
[1753366554291,0.9528,3632.5,3631.9,2.75336859]
[1753366554497,2.75255021,3633.0,3632.1,2.75317585]
[1753366554796,2.75229497,3633.4,3632.6,2.75279687]
[1753366554994,0.8397,3633.9,3632.7,4.676]
[1753366554995,0.9528,3633.3,3632.7,4.676]
[1753366555173,0.9528,3633.3,3632.8,4.676]
[1753366555362,0.4706,3633.7,3632.8,4.676]
[1753366555558,0.4706,3633.7,3632.9,4.675]
[1753366555559,2.75210306,3633.6,3632.9,4.675]
[1753366555759,0.4822,3633.5,3633.0,4.68774794]
[1753366556011,0.4706,3633.7,3633.1,4.674]
[1753366556188,3.22261765,3633.7,3633.1,4.674]
[1753366556494,0.8397,3633.9,3633.3,2.75231136]
[1753366556720,0.8397,3633.9,3633.4,4.675]
[1753366557195,0.4822,3633.8,3633.4,4.675]
[1753366557555,0.04,3633.9,3633.4,4.675]
[1753366557755,0.04,3633.9,3633.5,2.75216733]
[1753366557999,0.04,3633.9,3633.7,2.75200045]
[1753366558191,0.04,3633.9,3633.8,7.42194011]
[1753366558392,0.04,3633.9,3633.8,4.67]
[1753366558589,0.04,3633.9,3633.8,7.42194011]
[1753366558791,0.04,3633.9,3633.8,4.67]
[1753366559173,0.04,3633.9,3633.8,7.42194011]
[1753366559797,0.04,3633.9,3633.1,1.2032]
[1753366560000,0.04,3633.9,3633.8,0.1376]
[1753366560215,3.0,3633.5,3630.6,0.7883]
[1753366560386,0.55,3632.8,3630.6,0.7883]
[1753366560579,0.7788,3632.5,3630.8,4.7]
[1753366560913,3.53174638,3632.5,3630.9,0.21132783]
[1753366561088,2.75362758,3631.6,3630.9,2.96544159]
[1753366561284,3.9552,3632.4,3631.1,0.05378205]
[1753366561510,0.9552,3631.5,3631.1,0.04]
[1753366561718,3.57398086,3631.4,3631.1,0.04]
[1753366561891,4.52918086,3631.4,3631.1,0.04]
[1753366562387,7.52918086,3631.4,3631.1,0.04]
[1753366562590,7.49475888,3631.4,3631.1,0.04]
[1753366562786,4.741,3631.4,3631.1,0.04]
[1753366563011,7.49475888,3631.4,3631.1,0.04]
[1753366566313,6.53955888,3631.4,3631.1,0.04]
[1753366566516,7.02415888,3631.4,3631.1,0.04]
[1753366567215,7.49475888,3631.4,3631.1,0.04]
[1753366569527,1.2704,3631.4,3631.1,0.04]
[1753366569846,4.49475888,3631.4,3631.1,0.04]
[1753366570296,4.63235888,3631.4,3631.1,0.04]
[1753366571401,4.63235888,3631.4,3630.1,0.04]
[1753366571402,2.75436566,3630.6,3630.1,0.04]
[1753366571618,1.3489,3631.3,3630.1,0.04]
[1753366571619,2.75466916,3630.2,3630.1,0.04]
[1753366571804,1.2835,3630.5,3630.1,0.04]
[1753366571999,4.2835,3630.5,3630.1,0.04]
[1753366572227,2.75466916,3630.2,3630.1,0.04]
[1753366572431,5.78910252,3630.2,3630.1,0.04]
[1753366572592,3.0,3630.2,3630.1,0.04]
[1753366573829,3.98963336,3630.2,3630.1,0.04]
[1753366574025,6.74430252,3630.2,3630.1,0.04]
[1753366574198,6.70986916,3630.2,3630.1,0.04]
[1753366574398,8.6312,3630.2,3630.1,0.04]
[1753366575623,11.38586916,3630.2,3630.1,0.04]
[1753366575824,4.10769682,3629.9,3629.8,0.001]
[1753366576037,7.14213303,3629.9,3629.8,0.001]
[1753366576227,8.06289682,3629.9,3629.8,0.001]
[1753366576816,12.18289682,3629.9,3629.8,0.001]
[1753366577531,12.73289682,3629.9,3629.8,0.001]
[1753366578402,7.51289682,3629.9,3629.8,0.001]
[1753366578608,12.18089682,3629.9,3629.8,0.001]
[1753366579014,7.51289682,3629.9,3629.8,0.001]
[1753366579194,9.423,3629.9,3629.8,0.001]
[1753366579394,4.758,3629.9,3629.8,0.001]
[1753366579629,0.76,3630.3,3629.8,0.001]
[1753366579842,0.4846,3630.5,3630.0,2.75482093]
[1753366580130,3.0,3630.6,3630.1,2.75469146]
[1753366580295,4.67,3630.7,3630.6,2.75436292]
[1753366580494,0.7955,3631.3,3630.7,2.75425214]
[1753366580694,0.7955,3631.3,3630.1,0.92109267]